Cogmind - Beta 17.1 @@@ ROGUE MODE // 2026.09.02 @ 16:34:48 Player: Scuttle Result: Self-destructed Performance ------------- Evolutions (8) 4000 Regions Visited (15) 3000 Robots Destroyed (1) 5 Value Destroyed (37) 37 Prototype IDs (1) 20 Alien Tech Used (0) 0 Bonus (1300) 1300 TOTAL SCORE: 8362 Bonus ------- Entered DSFs 1000 Aligned with FarCom 300 Cogmind --------- Core Integrity 191/1450 Matter 212/300 Energy 99/100 System Corruption 2% Temperature Cool (0) Movement Core (50) Location -2/Research Parts ------- > --- POWER (1) -------- (None) > --- PROPULSION (2) --- (None) > --- UTILITY (18) ----- (None) > --- WEAPON (2) ------- (None) > --- INVENTORY (5) ---- Advanced Signal Interpreter Heavy Mace Peak State ------------ > --- POWER ------------ (None) > --- PROPULSION ------- (None) > --- UTILITY ---------- Improved Signal Interpreter Experimental Core Analyzer > --- WEAPON ----------- (None) > --- INVENTORY -------- Advanced Signal Interpreter Heavy Mace [Rating: 13] Favorites ----------- Power None Propulsion None Utility Improved Signal Interpreter Processor Improved Signal Interpreter Hackware System Shield Weapon Light Assault Rifle Energy Gun Medium Laser Ballistic Gun Light Assault Rifle Impact Weapon Heavy Mace Build | -11 -10 -10 -10 -9 -8 -7 -7 -6 -6 -6 -5 -5 -4 -3 -2 ------- Run | Yrd Mat Min Exi Min Mat Fac DSF Fac Low Low Fac DSF Fac Res Res Slots Evolved 16 | . . . . . 4 2 . 2 . . 2 . 2 2 2 Power . | . . . . . . . . . . . . . . . . Propulsion . | . . . . . . . . . . . . . . . . Utility 16 | . . . . . 4 2 . 2 . . 2 . 2 2 2 Weapon . | . . . . . . . . . . . . . . . . Parts Attached 8 | 2 . . . . . . . 4 . . . . 1 . 1 Power . | . . . . . . . . . . . . . . . . Engine . | . . . . . . . . . . . . . . . . Core . | . . . . . . . . . . . . . . . . Reactor . | . . . . . . . . . . . . . . . . Propulsion . | . . . . . . . . . . . . . . . . Treads . | . . . . . . . . . . . . . . . . Leg . | . . . . . . . . . . . . . . . . Wheel . | . . . . . . . . . . . . . . . . Hover . | . . . . . . . . . . . . . . . . Flight . | . . . . . . . . . . . . . . . . Utility 5 | . . . . . . . . 3 . . . . 1 . 1 Device . | . . . . . . . . . . . . . . . . Storage . | . . . . . . . . . . . . . . . . Processor 3 | . . . . . . . . 1 . . . . 1 . 1 Hackware 2 | . . . . . . . . 2 . . . . . . . Protection . | . . . . . . . . . . . . . . . . Artifact . | . . . . . . . . . . . . . . . . Weapon 3 | 2 . . . . . . . 1 . . . . . . . Energy Gun 1 | 1 . . . . . . . . . . . . . . . Energy Cannon . | . . . . . . . . . . . . . . . . Ballistic Gun 1 | 1 . . . . . . . . . . . . . . . Ballistic Cannon . | . . . . . . . . . . . . . . . . Launcher . | . . . . . . . . . . . . . . . . Special Weapon . | . . . . . . . . . . . . . . . . Impact Weapon 1 | . . . . . . . . 1 . . . . . . . Slashing Weapon . | . . . . . . . . . . . . . . . . Piercing Weapon . | . . . . . . . . . . . . . . . . Special Melee Weapon . | . . . . . . . . . . . . . . . . Unidentified Prototypes 1 | . . . . . . . . . . . . . . . 1 Parts Lost 5 | . . . . 2 . . . 2 . . . . . . 1 Power . | . . . . . . . . . . . . . . . . Propulsion . | . . . . . . . . . . . . . . . . Utility 3 | . . . . . . . . 2 . . . . . . 1 Weapon 2 | . . . . 2 . . . . . . . . . . . Highest Loss Streak 2 | . . . . 2 . . . 1 . . . . . . 1 To Critical Strikes . | . . . . . . . . . . . . . . . . Average Backups 1 | . . . 1 1 1 2 2 1 2 2 2 2 1 2 2 Power . | . . . . . . . . . . . . . . . . Propulsion . | . . . . . . . . . . . . . . . . Utility . | . . . . . . 1 1 . 1 1 1 1 . 1 1 Weapon . | . . . 1 1 1 1 1 1 1 1 1 1 1 1 1 Tool/Special . | . . . . . . . . . . . . . . . . Unused Backups 2 | . . . . . 1 . . . . . . . . . 1 Power . | . . . . . . . . . . . . . . . . Propulsion . | . . . . . . . . . . . . . . . . Utility 1 | . . . . . . . . . . . . . . . 1 Weapon 1 | . . . . . 1 . . . . . . . . . . Tool/Special . | . . . . . . . . . . . . . . . . Average Slot Usage (%) 11 | . 28 28 28 20 . . . 8 6 6 5 5 2 4 6 Processor 2 | . . . . . . . . 3 6 6 5 5 2 4 6 Energy Gun 3 | . 14 14 14 10 . . . . . . . . . . . Ballistic Gun 3 | . 14 14 14 9 . . . . . . . . . . . Peak Build Rating 13 | 2 2 2 2 2 . . . 11 3 3 3 3 6 3 13 Average Rating 3 | 1 2 2 2 1 . . . 4 3 3 3 3 1 3 9 On Entrance 1 | . 2 2 2 2 . . . . 3 3 3 3 3 3 3 Avg Prop Armor Cover (%) . | . . . . . . . . . . . . . . . . Naked Turns 397 | . . . . 43 41 17 32 67 . . . . 175 . 22 Heaviest Build 3 | 3 3 3 3 3 . . . . . . . . . . . Greatest Support 3 | 3 3 3 3 3 3 3 3 3 3 3 3 3 3 3 3 Greatest Overweight (x) . | . . . . . . . . . . . . . . . . Average Overweight (x) . | . . . . . . . . . . . . . . . . Largest Inventory Capacity 5 | 5 5 5 5 5 5 5 5 5 5 5 5 5 5 5 5 Average Capacity 5 | 5 5 5 5 5 5 5 5 5 5 5 5 5 5 5 5 Most Carried 3 | . . 1 1 1 2 2 2 3 2 2 2 2 2 2 2 Average Carried 1 | . . . 1 1 1 2 2 1 2 2 2 2 1 2 2 Final Capacity 5 | 5 5 5 5 5 5 5 5 5 5 5 5 5 5 5 5 Final Carried 2 | . . 1 1 1 2 2 2 2 2 2 2 2 2 2 2 Class Distribution -------------------- 100% | Mutant Dominant Class ---------------- Mutant | -10/Materials Mutant | -10/Mines Mutant | -10/Exiles Mutant | -9/Mines Mutant | -8/Materials Mutant | -7/Factory Mutant | -7/DSF Mutant | -6/Factory Mutant | -6/Lower Caves Mutant | -6/Lower Caves Mutant | -5/Factory Mutant | -5/DSF Mutant | -4/Factory Mutant | -3/Research Mutant | -2/Research Resources | -11 -10 -10 -10 -9 -8 -7 -7 -6 -6 -6 -5 -5 -4 -3 -2 ----------- Run | Yrd Mat Min Exi Min Mat Fac DSF Fac Low Low Fac DSF Fac Res Res Matter Collected 122 | . . 66 . 48 . . . . 8 . . . . . . Remotely . | . . . . . . . . . . . . . . . . Salvage Created 21 | . . 21 . . . . . . . . . . . . . Parts 4 | . . 4 . . . . . . . . . . . . . Haulers Intercepted . | . . . . . . . . . . . . . . . . Recyclers Shooed . | . . . . . . . . . . . . . . . . Parts Field Recycled . | . . . . . . . . . . . . . . . . Retrieved Matter . | . . . . . . . . . . . . . . . . Parts Self-Destructed . | . . . . . . . . . . . . . . . . Prevented . | . . . . . . . . . . . . . . . . Parts Restored . | . . . . . . . . . . . . . . . . Kills | -11 -10 -10 -10 -9 -8 -7 -7 -6 -6 -6 -5 -5 -4 -3 -2 ------- Run | Yrd Mat Min Exi Min Mat Fac DSF Fac Low Low Fac DSF Fac Res Res Combat Hostiles Destroyed . | . . . . . . . . . . . . . . . . Classes Destroyed 1 | . . 1 . . . . . . . . . . . . . Tunneler 1 | . . 1 . . . . . . . . . . . . . Best Kill Streak 1 | . . 1 . . . . . . . . . . . . . Combat Bots Only . | . . . . . . . . . . . . . . . . Max Kills in Single Turn 1 | . . 1 . . . . . . . . . . . . . Gunslinging . | . . . . . . . . . . . . . . . . Exploded . | . . . . . . . . . . . . . . . . Melee . | . . . . . . . . . . . . . . . . Uniques/NPCs Destroyed . | . . . . . . . . . . . . . . . . Combat | -11 -10 -10 -10 -9 -8 -7 -7 -6 -6 -6 -5 -5 -4 -3 -2 -------- Run | Yrd Mat Min Exi Min Mat Fac DSF Fac Low Low Fac DSF Fac Res Res Hostile Shots Fired 191 | . . 4 . 16 3 . 1 63 5 . . 6 27 4 62 Missed 93 | . . 4 . 7 2 . . 33 1 . . 3 16 1 26 Hits 98 | . . . . 9 1 . 1 30 4 . . 3 11 3 36 Melee 16 | . . . . . . . . 1 . . . . . . 15 Projectile 82 | . . . . 9 1 . 1 29 4 . . 3 11 3 21 AOE 4 | . . . . 4 . . . . . . . . . . . Critical Strikes 12 | . . . . . . . . 2 . . . . 2 . 8 Damage Taken 2696 | . . 19 . 253 20 . 43 516 61 . . 170 247 84 1283 Core 2497 | . . 7 . 104 20 . 43 506 61 . . 169 247 81 1259 Absorbed by Shields . | . . . . . . . . . . . . . . . . Core Remaining (%) 78 | 100 . . . 55 96 . 93 . . 33 . 83 78 93 . Volleys Fired . | . . . . . . . . . . . . . . . . Largest . | . . . . . . . . . . . . . . . . Hottest . | . . . . . . . . . . . . . . . . Shots Fired . | . . . . . . . . . . . . . . . . Gun . | . . . . . . . . . . . . . . . . Cannon . | . . . . . . . . . . . . . . . . Launcher . | . . . . . . . . . . . . . . . . Special . | . . . . . . . . . . . . . . . . Kinetic . | . . . . . . . . . . . . . . . . Thermal . | . . . . . . . . . . . . . . . . Explosive . | . . . . . . . . . . . . . . . . Electromagnetic . | . . . . . . . . . . . . . . . . Robot Hit Streak . | . . . . . . . . . . . . . . . . Robot Miss Streak . | . . . . . . . . . . . . . . . . Penetration Max . | . . . . . . . . . . . . . . . . Secondary Targets . | . . . . . . . . . . . . . . . . Shots Hit Robots . | . . . . . . . . . . . . . . . . Core Hits 3 | . . 2 . 1 . . . . . . . . . . . Critical Kills . | . . . . . . . . . . . . . . . . Critical Parts Destroyed . | . . . . . . . . . . . . . . . . Critical Strikes . | . . . . . . . . . . . . . . . . Melee Attacks 3 | . . . . . . . . 2 . . . . 1 . . Impact 3 | . . . . . . . . 2 . . . . 1 . . Slashing . | . . . . . . . . . . . . . . . . Piercing . | . . . . . . . . . . . . . . . . Sneak Attacks . | . . . . . . . . . . . . . . . . Combat Hostiles . | . . . . . . . . . . . . . . . . Follow-up Attacks . | . . . . . . . . . . . . . . . . Damage Inflicted 140 | . . 43 . 19 . . . . . . . 3 63 6 6 Guns . | . . . . . . . . . . . . . . . . Cannons . | . . . . . . . . . . . . . . . . Explosions . | . . . . . . . . . . . . . . . . Melee . | . . . . . . . . . . . . . . . . Ramming 140 | . . 43 . 19 . . . . . . . 3 63 6 6 Kinetic . | . . . . . . . . . . . . . . . . Thermal . | . . . . . . . . . . . . . . . . Explosive . | . . . . . . . . . . . . . . . . Electromagnetic . | . . . . . . . . . . . . . . . . Impact . | . . . . . . . . . . . . . . . . Slashing . | . . . . . . . . . . . . . . . . Piercing . | . . . . . . . . . . . . . . . . Highest Corruption 4 | . . . . 2 . . . 4 4 4 . . 1 . 2 Average Corruption 2 | . . . . 2 . . . 4 4 4 . . 1 . 1 Corruption Purged . | . . . . . . . . . . . . . . . . Corruption Blocked . | . . . . . . . . . . . . . . . . Effects 11 | . . . . 1 . . . 1 4 . . . 1 . 4 Message Errors 5 | . . . . . . . . . 2 . . . . . 3 Matter Fused 3 | . . . . 1 . . . . 1 . . . . . 1 Heat Flow Errors 2 | . . . . . . . . 1 1 . . . . . . Data Loss (minor) 1 | . . . . . . . . . . . . . 1 . . Overload Shots . | . . . . . . . . . . . . . . . . Overflow Damage . | . . . . . . . . . . . . . . . . Projectiles . | . . . . . . . . . . . . . . . . Explosions . | . . . . . . . . . . . . . . . . Melee . | . . . . . . . . . . . . . . . . Knockbacks . | . . . . . . . . . . . . . . . . Impact . | . . . . . . . . . . . . . . . . Kinetic . | . . . . . . . . . . . . . . . . Secondary . | . . . . . . . . . . . . . . . . Self-Inflicted Damage 64 | . . 19 . 9 . . . . . . . 1 30 3 2 Shots . | . . . . . . . . . . . . . . . . Rammed 27 | . . 8 . 4 . . . . . . . 2 10 1 2 Targets Rammed 27 | . . 8 . 4 . . . . . . . 2 10 1 2 Kicked . | . . . . . . . . . . . . . . . . Crushed . | . . . . . . . . . . . . . . . . Highest Temperature 224 | . . . . . . . . 184 224 . . . . . . Average Temperature 111 | . . . . . . . . 110 113 . . . . . . Received Heat Transfer 194 | . . . . . . . . 66 . . . 20 27 18 63 Siege Activations . | . . . . . . . . . . . . . . . . Martial Activations . | . . . . . . . . . . . . . . . . Shielding Activations . | . . . . . . . . . . . . . . . . Robots Disrupted . | . . . . . . . . . . . . . . . . Combat Hostiles . | . . . . . . . . . . . . . . . . Robots Corrupted . | . . . . . . . . . . . . . . . . Combat Hostiles . | . . . . . . . . . . . . . . . . Parts Fried . | . . . . . . . . . . . . . . . . Impact Corruptions . | . . . . . . . . . . . . . . . . Robots Melted . | . . . . . . . . . . . . . . . . Combat Hostiles . | . . . . . . . . . . . . . . . . Parts Melted . | . . . . . . . . . . . . . . . . Heat Transferred . | . . . . . . . . . . . . . . . . Parts Sabotaged . | . . . . . . . . . . . . . . . . Parts Stolen . | . . . . . . . . . . . . . . . . Parts Stripped . | . . . . . . . . . . . . . . . . Power Chain Reactions . | . . . . . . . . . . . . . . . . Alert | -11 -10 -10 -10 -9 -8 -7 -7 -6 -6 -6 -5 -5 -4 -3 -2 ------- Run | Yrd Mat Min Exi Min Mat Fac DSF Fac Low Low Fac DSF Fac Res Res Maximum Alert Level . | . . . . . . . . . . . . . . . . Low Security (%) 100 | 100 100 100 . 100 100 100 100 100 . . 100 100 100 100 100 Level 1 . | . . . . . . . . . . . . . . . . Level 2 . | . . . . . . . . . . . . . . . . Level 3 . | . . . . . . . . . . . . . . . . Level 4 . | . . . . . . . . . . . . . . . . Level 5 . | . . . . . . . . . . . . . . . . High Security . | . . . . . . . . . . . . . . . . Max Security . | . . . . . . . . . . . . . . . . Peak Influence 74 | . . 30 . 20 15 2 19 74 . . . . 35 15 63 Initial 10 | . . . . . 7 2 4 9 . . . . . 10 2 Average 13 | . . 4 . 1 5 2 7 37 . . . . 14 10 10 Influence Increases 558 | . . 35 . 30 15 5 15 165 . . . . 150 5 138 Destroy 0b10 Robot/NC 5 | . . 5 . . . . . . . . . . . . . Successful Hack 28 | . . . . . . 5 . . . . . . . 5 18 Disable Machine 45 | . . . . . . . . 30 . . . . 15 . . Partial Spotted 15 | . . . . . . . . . . . . . 15 . . Lose Combat Pursuer 465 | . . 30 . 30 15 . 15 135 . . . . 120 . 120 Influence Decreases 480 | . . 35 . 10 30 3 3 139 45 . . . 130 20 65 Entered New Map 60 | . . . . . 13 3 3 10 18 . . . . 10 3 Time Decay 391 | . . 35 . 10 17 . . 110 27 . . . 130 10 52 Lost Part 29 | . . . . . . . . 19 . . . . . . 10 Squads Dispatched 12 | . . . . . . . . 6 . . . . 1 . 5 Investigation 5 | . . . . . . . . 3 . . . . 1 . 1 Extermination 3 | . . . . . . . . 1 . . . . . . 2 Reinforcement 4 | . . . . . . . . 2 . . . . . . 2 Assault . | . . . . . . . . . . . . . . . . Garrison . | . . . . . . . . . . . . . . . . Intercept . | . . . . . . . . . . . . . . . . Searches Triggered . | . . . . . . . . . . . . . . . . Construction Impeded . | . . . . . . . . . . . . . . . . Haulers Reinforced . | . . . . . . . . . . . . . . . . Active Scanning Responses . | . . . . . . . . . . . . . . . . Cargo Convoy Interrupts . | . . . . . . . . . . . . . . . . Stealth | -11 -10 -10 -10 -9 -8 -7 -7 -6 -6 -6 -5 -5 -4 -3 -2 --------- Run | Yrd Mat Min Exi Min Mat Fac DSF Fac Low Low Fac DSF Fac Res Res Distress Signals 5 | . . . . . . . . 1 . . . . 2 . 2 Communications Jammed . | . . . . . . . . . . . . . . . . Distress Signals . | . . . . . . . . . . . . . . . . Times Spotted 70 | . 3 4 . 5 1 . 1 14 3 . . 6 10 2 21 Peak Tracking Total 11 | . 3 2 . 5 3 . 1 7 3 . . 6 7 3 11 Tactical Retreats 18 | . . 1 . 2 1 . 1 4 . . . . 5 . 4 Traps | -11 -10 -10 -10 -9 -8 -7 -7 -6 -6 -6 -5 -5 -4 -3 -2 ------- Run | Yrd Mat Min Exi Min Mat Fac DSF Fac Low Low Fac DSF Fac Res Res Traps Triggered 5 | . . . . . . . . 2 . . . . 1 . 2 Indirectly . | . . . . . . . . . . . . . . . . Trap Hack Attempts . | . . . . . . . . . . . . . . . . Triggered . | . . . . . . . . . . . . . . . . Disarmed . | . . . . . . . . . . . . . . . . Reprogrammed . | . . . . . . . . . . . . . . . . Reused . | . . . . . . . . . . . . . . . . Traps Extracted . | . . . . . . . . . . . . . . . . Installed . | . . . . . . . . . . . . . . . . Triggered . | . . . . . . . . . . . . . . . . Machines | -11 -10 -10 -10 -9 -8 -7 -7 -6 -6 -6 -5 -5 -4 -3 -2 ---------- Run | Yrd Mat Min Exi Min Mat Fac DSF Fac Low Low Fac DSF Fac Res Res Machines Disabled 3 | . . . . . . . . 2 . . . . 1 . . Max in Single Turn 1 | . . . . . . . . 1 . . . . 1 . . Machines Repaired . | . . . . . . . . . . . . . . . . Machines Dismantled . | . . . . . . . . . . . . . . . . Machines Sabotaged . | . . . . . . . . . . . . . . . . Overloaded Fab Kills . | . . . . . . . . . . . . . . . . Hacking | -11 -10 -10 -10 -9 -8 -7 -7 -6 -6 -6 -5 -5 -4 -3 -2 --------- Run | Yrd Mat Min Exi Min Mat Fac DSF Fac Low Low Fac DSF Fac Res Res Machines Accessed 10 | . . . . . . 1 . 3 . . 1 . 1 1 3 Terminals 10 | . . . . . . 1 . 3 . . 1 . 1 1 3 Fabricators . | . . . . . . . . . . . . . . . . Repair Stations . | . . . . . . . . . . . . . . . . Recycling Units . | . . . . . . . . . . . . . . . . Scanalyzers . | . . . . . . . . . . . . . . . . Garrison Access . | . . . . . . . . . . . . . . . . Total Hacks 28 | . . . . . . 2 . 11 . . 1 . 4 2 8 Successful 5 | . . . . . . 1 . . . . 1 . . 1 2 Failed 23 | . . . . . . 1 . 11 . . . . 4 1 6 Catastrophic 2 | . . . . . . . . 1 . . . . . 1 . Database Lockouts . | . . . . . . . . . . . . . . . . Manual 2 | . . . . . . . . . . . . . . 2 . Terminals 28 | . . . . . . 2 . 11 . . 1 . 4 2 8 Fabricators . | . . . . . . . . . . . . . . . . Repair Stations . | . . . . . . . . . . . . . . . . Recycling Units . | . . . . . . . . . . . . . . . . Scanalyzers . | . . . . . . . . . . . . . . . . Garrison Access . | . . . . . . . . . . . . . . . . Terminal Hacks 4 | . . . . . . 1 . . . . 1 . . . 2 Open DSF 3 | . . . . . . 1 . . . . 1 . . . 1 Level Access Points 1 | . . . . . . . . . . . . . . . 1 Fabricator Hacks . | . . . . . . . . . . . . . . . . Repair Station Hacks . | . . . . . . . . . . . . . . . . Recycling Unit Hacks . | . . . . . . . . . . . . . . . . Scanalyzer . | . . . . . . . . . . . . . . . . Garrison Access Hacks . | . . . . . . . . . . . . . . . . Unauthorized Hacks 1 | . . . . . . . . . . . . . . 1 . Terminals 1 | . . . . . . . . . . . . . . 1 . Botnet 1 | . . . . . . . . . . . . . . 1 . Fabricators . | . . . . . . . . . . . . . . . . Repair Stations . | . . . . . . . . . . . . . . . . Recycling Units . | . . . . . . . . . . . . . . . . Scanalyzers . | . . . . . . . . . . . . . . . . Garrison Access . | . . . . . . . . . . . . . . . . Data Cores Recovered . | . . . . . . . . . . . . . . . . Used . | . . . . . . . . . . . . . . . . Hacking Detections 8 | . . . . . . . . 3 . . . . 1 1 3 Full Trace Events 5 | . . . . . . . . 3 . . . . 1 . 1 Feedback Events 1 | . . . . . . . . . . . . . . . 1 Corruption 1 | . . . . . . . . . . . . . . . 1 Feedback Blocked . | . . . . . . . . . . . . . . . . Robot Schematics Acquired . | . . . . . . . . . . . . . . . . Robots Built . | . . . . . . . . . . . . . . . . Authchips . | . . . . . . . . . . . . . . . . Time . | . . . . . . . . . . . . . . . . Total Robot Build Rating . | . . . . . . . . . . . . . . . . Part Schematics Acquired . | . . . . . . . . . . . . . . . . Parts Built . | . . . . . . . . . . . . . . . . Authchips . | . . . . . . . . . . . . . . . . Time . | . . . . . . . . . . . . . . . . Total Part Build Rating . | . . . . . . . . . . . . . . . . Part Studies Acquired . | . . . . . . . . . . . . . . . . Parts Repaired . | . . . . . . . . . . . . . . . . Time . | . . . . . . . . . . . . . . . . Parts Recycled . | . . . . . . . . . . . . . . . . Recycled Matter . | . . . . . . . . . . . . . . . . Retrieved Matter . | . . . . . . . . . . . . . . . . Retrieved Components . | . . . . . . . . . . . . . . . . Parts Scanalyzed . | . . . . . . . . . . . . . . . . Part Schematics Acquired . | . . . . . . . . . . . . . . . . Parts Damaged . | . . . . . . . . . . . . . . . . Bothacking | -11 -10 -10 -10 -9 -8 -7 -7 -6 -6 -6 -5 -5 -4 -3 -2 ------------ Run | Yrd Mat Min Exi Min Mat Fac DSF Fac Low Low Fac DSF Fac Res Res Used RIF Installer . | . . . . . . . . . . . . . . . . Robots Hacked . | . . . . . . . . . . . . . . . . Non-combat . | . . . . . . . . . . . . . . . . Combat . | . . . . . . . . . . . . . . . . Robot Hacks Applied . | . . . . . . . . . . . . . . . . Relay Couplers Released . | . . . . . . . . . . . . . . . . Fabnet Peak Effective % . | . . . . . . . . . . . . . . . . Robots Rewired . | . . . . . . . . . . . . . . . . Allies Hacked . | . . . . . . . . . . . . . . . . Hacks Repelled . | . . . . . . . . . . . . . . . . Allies | -11 -10 -10 -10 -9 -8 -7 -7 -6 -6 -6 -5 -5 -4 -3 -2 -------- Run | Yrd Mat Min Exi Min Mat Fac DSF Fac Low Low Fac DSF Fac Res Res Total Allies 2 | . . 2 . . . . . . . . . . . . . Largest Group 2 | . . 2 . . . . . . . . . . . . . Highest-Rated Group 43 | . . 43 . . . . . . . . . . . . . Highest-Rated Ally 31 | . . 31 . . . . . . . . . . . . . Total Orders . | . . . . . . . . . . . . . . . . Ally Attacks . | . . . . . . . . . . . . . . . . Total Damage . | . . . . . . . . . . . . . . . . Kills . | . . . . . . . . . . . . . . . . Allies Corrupted . | . . . . . . . . . . . . . . . . Allies Melted . | . . . . . . . . . . . . . . . . Intel | -11 -10 -10 -10 -9 -8 -7 -7 -6 -6 -6 -5 -5 -4 -3 -2 ------- Run | Yrd Mat Min Exi Min Mat Fac DSF Fac Low Low Fac DSF Fac Res Res Active Infowar (turns) . | . . . . . . . . . . . . . . . . Robot Analysis Total . | . . . . . . . . . . . . . . . . Derelict Logs Recovered 4 | . . 2 . . . . . . 1 1 . . . . . Drone Launches . | . . . . . . . . . . . . . . . . Drone Recoveries . | . . . . . . . . . . . . . . . . Exploration | -11 -10 -10 -10 -9 -8 -7 -7 -6 -6 -6 -5 -5 -4 -3 -2 ------------- Run | Yrd Mat Min Exi Min Mat Fac DSF Fac Low Low Fac DSF Fac Res Res Turns Passed 1573 | 14 25 212 79 152 41 17 32 249 128 13 11 16 285 22 277 Spaces Moved 2940 | 21 49 406 158 295 76 33 63 469 256 26 21 28 484 43 512 Core 2940 | 21 49 406 158 295 76 33 63 469 256 26 21 28 484 43 512 Treads . | . . . . . . . . . . . . . . . . Legs . | . . . . . . . . . . . . . . . . Wheels . | . . . . . . . . . . . . . . . . Hover . | . . . . . . . . . . . . . . . . Flight . | . . . . . . . . . . . . . . . . Fastest Speed 50 | 50 50 50 50 50 50 50 50 50 50 50 50 50 50 50 50 Average Speed 50 | 50 50 50 50 50 50 50 50 50 50 50 50 50 50 50 50 Slowest Speed 50 | 50 50 50 50 50 50 50 50 50 50 50 50 50 50 50 50 Overloaded Moves . | . . . . . . . . . . . . . . . . Propulsion Burnouts . | . . . . . . . . . . . . . . . . Robots Hopped . | . . . . . . . . . . . . . . . . Potential Cave-ins . | . . . . . . . . . . . . . . . . Cave-ins Triggered . | . . . . . . . . . . . . . . . . Exploration Rate (%) 28 | 4 13 91 55 65 14 1 68 19 48 7 1 42 16 1 18 Regions Visited 15 Branch Regions 5 Pre-discovered Areas 2 | . . 1 . 1 . . . . . . . . . . . Known Exits Taken 7 | . . . . . . 1 . 1 1 1 1 . 1 1 . Unknown Exits Taken 6 | 1 1 1 1 1 1 . . . . . . . . . . Scrap Searched 3 | . . 2 . . . . . . 1 . . . . . . Spaces Dug . | . . . . . . . . . . . . . . . . Terrain Destroyed . | . . . . . . . . . . . . . . . . Melee . | . . . . . . . . . . . . . . . . Projectile . | . . . . . . . . . . . . . . . . AOE . | . . . . . . . . . . . . . . . . Terrain Rammed . | . . . . . . . . . . . . . . . . Walls Destroyed . | . . . . . . . . . . . . . . . . Machines Disabled . | . . . . . . . . . . . . . . . . Actions | -11 -10 -10 -10 -9 -8 -7 -7 -6 -6 -6 -5 -5 -4 -3 -2 --------- Run | Yrd Mat Min Exi Min Mat Fac DSF Fac Low Low Fac DSF Fac Res Res Total 3020 | 22 48 414 157 298 78 33 62 479 255 25 20 29 525 43 532 Wait 28 | . . . . . . . . . . . . . 11 . 17 Move 2928 | 20 48 405 157 294 75 33 62 468 255 25 20 28 483 43 512 Hop . | . . . . . . . . . . . . . . . . Pick Up 6 | . . 1 . . 2 . . 2 . . . . 1 . . Fast Attach 4 | 2 . . . . . . . 1 . . . . . . 1 Attach 6 | . . . . . . . . 4 . . . . 2 . . Detach 4 | . . . . . . . . 2 . . . . 2 . . Swap . | . . . . . . . . . . . . . . . . Drop 1 | . . . . . 1 . . . . . . . . . . Fire . | . . . . . . . . . . . . . . . . Melee 3 | . . . . . . . . 2 . . . . 1 . . Ram 25 | . . 8 . 4 . . . . . . . 1 10 . 2 Kick . | . . . . . . . . . . . . . . . . Crush . | . . . . . . . . . . . . . . . . Escape Stasis 15 | . . . . . . . . . . . . . 15 . . Rewire . | . . . . . . . . . . . . . . . . Trap . | . . . . . . . . . . . . . . . . Miscellaneous . | . . . . . . . . . . . . . . . . Route ------- -11/Scrapyard -10/Materials -10/Mines (discovered 3 exits: [*Mat x2] / [*Exi]) -10/Exiles (discovered 2 exits: [*Min x2]) -9/Mines -8/Materials -7/Factory -7/DSF -6/Factory -6/Lower Caves -6/Lower Caves -5/Factory (discovered 3 exits: Fac / Upp / DSF) -5/DSF -4/Factory -3/Research -2/Research (discovered 3 exits: Acc x3) History --------- Turn | Location | Event 3 | -11/Scrapyard | Discovered new exit (range 16) 15 | -11/Scrapyard | Entered Materials 32 | -10/Materials | Discovered new exit (range 15) 40 | -10/Materials | Entered Mines 65 | -10/Mines | Discovered new exit (range 16) 94 | -10/Mines | Learned location of Mines (-9) 99 | -10/Mines | Discovered new exit (range 6) 161 | -10/Mines | Learned Materials trap positions 225 | -10/Mines | Received a Rocket Launcher from a helpful Derelict 250 | -10/Mines | Deemed a non-threat by the Exiles lab entrance 250 | -10/Mines | Discovered new exit (range 5) 252 | -10/Mines | Entered Exiles 259 | -10/Exiles | Discovered new exit (range 15) 265 | -10/Exiles | Met 8R-AWN 273 | -10/Exiles | Met EX-HEX 287 | -10/Exiles | Met EX-BIN 294 | -10/Exiles | Aligned with FarCom system 294 | -10/Exiles | Given EX-Vault access code 308 | -10/Exiles | Met EX-DEC 312 | -10/Exiles | Build established: Mutant 326 | -10/Exiles | Discovered new exit (range 10) 331 | -10/Exiles | Entered Mines 351 | -9/Mines | Assembled infested the area 356 | -9/Mines | Assisted by a Guerilla fighting off Assembled 479 | -9/Mines | Discovered new exit (range 7) 480 | -9/Mines | Learned location of Storage (-9) 483 | -9/Mines | Entered Materials 483 | -8/Materials | Evolved 4 slots: Utility x4 484 | -8/Materials | Loaded intel: 13 trap records 516 | -8/Materials | Discovered new exit (range 16) 524 | -8/Materials | Entered Factory 524 | -7/Factory | Evolved 2 slots: Utility x2 541 | -7/Factory | Identified exit to DSF 541 | -7/Factory | Entered DSF 565 | -7/DSF | Discovered new exit (range 16) 567 | -7/DSF | Additional patrols routed to DSF 573 | -7/DSF | Entered Factory 573 | -6/Factory | Evolved 2 slots: Utility x2 802 | -6/Factory | Core integrity fell below 50% 814 | -6/Factory | Discovered new exit (range 15) 821 | -6/Factory | Identified exit to Lower Caves 822 | -6/Factory | Entered Lower Caves 898 | -6/Lower Caves | Learned location of 2 exits from Factory 904 | -6/Lower Caves | Encountered a Warlord checkpoint 947 | -6/Lower Caves | Discovered new exit (range 10) 950 | -6/Lower Caves | Identified exit to Lower Caves 950 | -6/Lower Caves | Entered another Lower Caves area 955 | -6/Lower Caves | Learned Factory stockpile data 957 | -6/Lower Caves | Discovered new exit (range 10) 963 | -6/Lower Caves | Identified exit to Factory 963 | -6/Lower Caves | Entered Factory 963 | -5/Factory | Evolved 2 slots: Utility x2 964 | -5/Factory | Identified exit to Factory 964 | -5/Factory | Identified exit to Upper Caves 973 | -5/Factory | Identified exit to DSF 974 | -5/Factory | Entered DSF 980 | -5/DSF | Wild Derelicts raided the area 982 | -5/DSF | Discovered exit to Factory (range 15) 990 | -5/DSF | Entered Factory 990 | -4/Factory | Evolved 2 slots: Utility x2 1244 | -4/Factory | Discovered new exit (range 4) 1248 | -4/Factory | Identified exit to Research 1275 | -4/Factory | Entered Research 1275 | -3/Research | Evolved 2 slots: Utility x2 1296 | -3/Research | Discovered new exit (range 4) 1297 | -3/Research | Identified exit to Research 1297 | -3/Research | Entered another Research area 1297 | -2/Research | Evolved 2 slots: Utility x2 1351 | -2/Research | Found Prototype Processor 1351 | -2/Research | Identified Exp. Core Analyzer 1477 | -2/Research | Spotted B-90 Cyclops 1546 | -2/Research | Identified exit to Access 1557 | -2/Research | Core integrity fell below 50% 1570 | -2/Research | Core integrity fell below 20% 1574 | -2/Research | Self-destructed Last Messages --------------- 01546_ ALERT: Potential suspicious activity detected, Programmers report to Research Zone 7B. 01546_ Connecting with Terminal... >>Access(Main) Found 3 level access points to Access: (191,187) (55,123) (205,130) Map updated. 01548_ Penetrated by Slug. 01548_ Imp. Signal Interpreter destroyed. 01548_ Slug penetrates Wall. 01551_ Penetrated by Slug. 01551_ Knocked back. 01552_ Exp. Core Analyzer severed. 01554_ YJUIPMMLLCKH0%NZ/DCQ